Cogmind - Beta 10.2 @@@ ROGUE MODE // 2020.11.30 @ 12:50:45 // Halloween2020/ForbiddenLore Player: CrossedViper Result: Destroyed by as-50254 with Assembled Heavy Rifle Performance ------------- Evolutions (0) 0 Regions Visited (3) 600 Robots Destroyed (30) 150 Value Destroyed (578) 578 Prototype IDs (23) 460 Alien Tech Used (0) 0 Bonus (102) 102 TOTAL SCORE: 1890 Bonus ------- Aligned with FarCom 300 Friendly Fire -198 Cogmind --------- Core Integrity 0/250 Matter 179/300 Energy 100/100 System Corruption 0% Temperature Cool (0) Movement Walking (120) Location -10/Exiles Parts ------- > --- POWER (1) -------- (None) > --- PROPULSION (2) --- Aluminum Leg Aluminum Leg > --- UTILITY (2) ------ Large Storage Unit > --- WEAPON (2) ------- Mining Claw > --- INVENTORY (10) --- Large Storage Unit Medium Armor Plating Medium Armor Plating Grenade Launcher Mining Claw Mining Claw Mining Claw Makeshift Spear Peak State ------------ > --- POWER ------------ Light Nuclear Core > --- PROPULSION ------- Aluminum Leg Aluminum Leg > --- UTILITY ---------- Large Storage Unit Large Storage Unit > --- WEAPON ----------- Light Cannon Grenade Launcher > --- INVENTORY -------- Ion Engine Light Treads Aluminum Leg EM Pulse Gun EM Pulse Gun Hammer Mining Claw Mining Claw Mining Claw Mining Claw [Rating: 10] Favorites ----------- Power Light Ion Engine Engine Light Ion Engine Power Core Light Nuclear Core Propulsion Aluminum Leg Leg Aluminum Leg Utility Large Storage Unit Storage Large Storage Unit Protection Medium Armor Plating Weapon Light Cannon Energy Gun EM Pulse Gun Ballistic Gun Light Assault Rifle Ballistic Cannon Light Cannon Launcher Grenade Launcher Slashing Weapon Mining Claw Build | -11 -10 -10 -10 ------- Run | Scr Mat Min Exi Slots Evolved . | . . . . Power . | . . . . Propulsion . | . . . . Utility . | . . . . Weapon . | . . . . Parts Attached 29 | . 17 7 5 Power 5 | . 3 2 . Engine 4 | . 2 2 . Core 1 | . 1 . . Reactor . | . . . . Propulsion 5 | . 3 1 1 Treads . | . . . . Leg 5 | . 3 1 1 Wheel . | . . . . Hover . | . . . . Flight . | . . . . Utility 7 | . 5 . 2 Device . | . . . . Storage 5 | . 5 . . Processor . | . . . . Hackware . | . . . . Protection 2 | . . . 2 Artifact . | . . . . Weapon 12 | . 6 4 2 Energy Gun 2 | . 1 1 . Energy Cannon . | . . . . Ballistic Gun 1 | . . 1 . Ballistic Cannon 2 | . 2 . . Launcher 5 | . 3 1 1 Special Weapon . | . . . . Impact Weapon . | . . . . Slashing Weapon 2 | . . 1 1 Piercing Weapon . | . . . . Special Melee Weapon . | . . . . Unidentified Prototypes . | . . . . Parts Lost 7 | . . 3 4 Power 2 | . . 1 1 Propulsion . | . . . . Utility 2 | . . . 2 Weapon 3 | . . 2 1 Highest Loss Streak 4 | . . 1 4 Average Slot Usage (%) 96 | . 93 99 97 Engine 9 | . 4 12 13 Core 4 | . 9 1 . Leg 28 | . 28 28 28 Storage 23 | . 21 28 17 Protection 2 | . . . 9 Energy Gun 6 | . 9 7 . Ballistic Gun 1 | . . 3 . Ballistic Cannon 7 | . 13 5 . Launcher 5 | . 4 6 3 Slashing Weapon 6 | . . 5 23 Naked Turns . | . . . . Heaviest Build 43 | 12 43 42 40 Greatest Support 20 | 20 20 20 20 Greatest Overweight (x) 2 | . 2 2 1 Average Overweight (x) 1 | . . 1 . Largest Inventory Capacity 16 | . 16 16 16 Average Capacity 13 | . 11 16 11 Most Carried 16 | . 14 16 15 Average Carried 10 | . 7 14 10 Final Capacity 16 | 6 16 16 10 Final Carried 15 | 6 14 15 8 Class Distribution -------------------- 100% | Mutant Dominant Class ---------------- Mutant | -10/Materials Mutant | -10/Mines Mutant | -10/Exiles Resources | -11 -10 -10 -10 ----------- Run | Scr Mat Min Exi Matter Collected 633 | 196 197 240 . Remotely . | . . . . Salvage Created 943 | . 477 457 9 Parts 57 | . 42 15 . Haulers Intercepted 2 | . 2 . . Recyclers Shooed . | . . . . Parts Field Recycled . | . . . . Retrieved Matter . | . . . . Parts Self-Destructed . | . . . . Prevented . | . . . . Kills | -11 -10 -10 -10 ------- Run | Scr Mat Min Exi Combat Hostiles Destroyed 26 | . 13 9 4 Guns 4 | . 1 3 . Cannons 3 | . 2 1 . AOE 19 | . 10 5 4 Classes Destroyed 7 | . 6 . 1 Builder 1 | . 1 . . Hauler 2 | . 2 . . Recycler 4 | . 1 3 . Watcher 1 | . 1 . . Swarmer 12 | . 6 6 . Grunt 10 | . 7 3 . Assembled 4 | . . . 4 Best Kill Streak 7 | . 7 3 4 Combat Bots Only 4 | . 4 3 4 Max Kills in Single Turn 4 | . 4 3 3 Gunslinging . | . . . . Exploded 3 | . 3 3 3 Melee . | . . . . Uniques/NPCs Destroyed . | . . . . Combat | -11 -10 -10 -10 -------- Run | Scr Mat Min Exi Damage Taken 1420 | . 309 412 699 Core 261 | . 62 25 174 Absorbed by Shields . | . . . . Core Remaining (%) 100 | 100 . . . Volleys Fired 54 | . 20 30 4 Largest 2 | . 2 2 1 Hottest 75 | . 75 75 33 Shots Fired 94 | . 34 56 4 Gun 41 | . 14 27 . Cannon 40 | . 14 26 . Launcher 13 | . 6 3 4 Special . | . . . . Kinetic 40 | . 14 26 . Thermal . | . . . . Explosive 13 | . 6 3 4 Electromagnetic 41 | . 14 27 . Robot Hit Streak 10 | . 10 7 1 Robot Miss Streak 4 | . 4 3 2 Penetration Max . | . . . . Secondary Targets . | . . . . Shots Hit Robots 49 | . 17 29 3 Core Hits 50 | . 24 17 9 Critical Hits . | . . . . Critical Kills . | . . . . Critical Parts Destroyed . | . . . . Melee Attacks 3 | . . 1 2 Impact . | . . . . Slashing 3 | . . 1 2 Piercing . | . . . . Sneak Attacks 1 | . . . 1 Combat Hostiles . | . . . . Follow-up Attacks . | . . . . Damage Inflicted 2024 | . 890 700 434 Guns 366 | . 125 241 . Cannons 307 | . 104 203 . Explosions 1258 | . 661 256 341 Melee 93 | . . . 93 Ramming . | . . . . Kinetic 307 | . 104 203 . Thermal 81 | . 81 . . Explosive 1177 | . 580 256 341 Electromagnetic 366 | . 125 241 . Impact . | . . . . Slashing 93 | . . . 93 Piercing . | . . . . Highest Corruption . | . . . . Average Corruption . | . . . . Corruption Purged . | . . . . Overload Shots . | . . . . Overflow Damage 26 | . 4 . 22 Projectiles . | . . . . Explosions 19 | . 4 . 15 Melee 7 | . . . 7 Knockbacks 3 | . . 3 . Impact . | . . . . Kinetic 3 | . . 3 . Secondary . | . . . . Self-Inflicted Damage 21 | . 21 . . Shots 1 | . 1 . . Rammed . | . . . . Targets Rammed . | . . . . Kicked . | . . . . Crushed . | . . . . Highest Temperature 312 | . 123 312 36 Average Temperature 89 | . 32 124 25 Received Heat Transfer 271 | . 102 129 40 Siege Activations . | . . . . Robots Corrupted . | . . . . Combat Hostiles . | . . . . Parts Fried 1 | . . 1 . Impact Corruptions . | . . . . Robots Melted . | . . . . Combat Hostiles . | . . . . Parts Melted . | . . . . Heat Transferred 50 | . 50 . . Parts Sabotaged . | . . . . Parts Stolen . | . . . . Parts Stripped . | . . . . Power Chain Reactions 1 | . 1 . . Missiles Intercepted . | . . . . Alert | -11 -10 -10 -10 ------- Run | Scr Mat Min Exi Peak Influence 350 | . 306 350 . Initial 85 | . . 85 . Average 173 | . 168 178 . Maximum Alert Level 1 | . 1 1 . Low Security (%) 58 | . 47 72 . Level 1 41 | . 52 27 . Level 2 . | . . . . Level 3 . | . . . . Level 4 . | . . . . Level 5 . | . . . . High Security . | . . . . Max Security . | . . . . Squads Dispatched 2 | . 2 . . Investigation . | . . . . Extermination . | . . . . Reinforcement 2 | . 2 . . Assault . | . . . . Garrison . | . . . . Intercept . | . . . . Construction Impeded . | . . . . Haulers Reinforced . | . . . . Stealth | -11 -10 -10 -10 --------- Run | Scr Mat Min Exi Distress Signals 1 | . 1 . . Communications Jammed . | . . . . Distress Signals . | . . . . Times Spotted 40 | . 21 11 8 Peak Tracking Total 9 | . 5 3 9 Tactical Retreats 2 | . . 2 . Traps | -11 -10 -10 -10 ------- Run | Scr Mat Min Exi Traps Triggered 2 | . 2 . . Indirectly . | . . . . Trap Hack Attempts . | . . . . Triggered . | . . . . Disarmed . | . . . . Reprogrammed . | . . . . Reused . | . . . . Traps Extracted . | . . . . Installed . | . . . . Triggered . | . . . . Machines | -11 -10 -10 -10 ---------- Run | Scr Mat Min Exi Machines Disabled 6 | . 1 2 3 Max in Single Turn 1 | . 1 1 1 Machines Sabotaged . | . . . . Garrisons Compromised . | . . . . Overloaded Fab Kills . | . . . . Fab Network Shutdowns . | . . . . Hacking | -11 -10 -10 -10 --------- Run | Scr Mat Min Exi Machines Accessed 3 | . 2 . 1 Terminals 2 | . 2 . . Fabricators . | . . . . Repair Stations . | . . . . Recycling Units . | . . . . Scanalyzers . | . . . . Garrison Access . | . . . . Total Hacks 7 | . 6 . 1 Successful 3 | . 2 . 1 Failed 4 | . 4 . . Catastrophic 1 | . 1 . . Database Lockouts . | . . . . Manual 4 | . 3 . 1 Terminals 6 | . 6 . . Fabricators . | . . . . Repair Stations . | . . . . Recycling Units . | . . . . Scanalyzers . | . . . . Garrison Access . | . . . . Terminal Hacks 1 | . . . 1 EX-Prototype ID Bank 1 | . . . 1 Fabricator Hacks . | . . . . Repair Station Hacks . | . . . . Recycling Unit Hacks . | . . . . Scanalyzer . | . . . . Garrison Access Hacks . | . . . . Unauthorized Hacks 2 | . 2 . . Terminals 2 | . 2 . . Track 1 | . 1 . . Botnet 1 | . 1 . . Fabricators . | . . . . Repair Stations . | . . . . Recycling Units . | . . . . Scanalyzers . | . . . . Garrison Access . | . . . . Data Cores Recovered . | . . . . Used . | . . . . Hacking Detections 2 | . 2 . . Full Trace Events 1 | . 1 . . Feedback Events . | . . . . Feedback Blocked . | . . . . Robot Schematics Acquired . | . . . . Robots Built . | . . . . Matter . | . . . . Time . | . . . . Total Robot Build Rating . | . . . . Part Schematics Acquired . | . . . . Parts Built . | . . . . Matter . | . . . . Time . | . . . . Total Part Build Rating . | . . . . Parts Repaired . | . . . . Time . | . . . . Parts Recycled . | . . . . Recycled Matter . | . . . . Retrieved Matter . | . . . . Retrieved Components . | . . . . Parts Scanalyzed . | . . . . Part Schematics Acquired . | . . . . Parts Damaged . | . . . . Bothacking | -11 -10 -10 -10 ------------ Run | Scr Mat Min Exi Used RIF Installer . | . . . . Robots Hacked . | . . . . Non-combat . | . . . . Combat . | . . . . Robot Hacks Applied . | . . . . Relay Couplers Released . | . . . . Robots Rewired . | . . . . Allies Hacked . | . . . . Hacks Repelled . | . . . . Allies | -11 -10 -10 -10 -------- Run | Scr Mat Min Exi Total Allies . | . . . . Largest Group . | . . . . Highest-Rated Group . | . . . . Highest-Rated Ally . | . . . . Total Orders . | . . . . Ally Attacks . | . . . . Total Damage . | . . . . Kills . | . . . . Allies Corrupted . | . . . . Allies Melted . | . . . . Intel | -11 -10 -10 -10 ------- Run | Scr Mat Min Exi Robot Analysis Total . | . . . . Derelict Logs Recovered 1 | . . 1 . Drone Launches . | . . . . Drone Recoveries . | . . . . Exploration | -11 -10 -10 -10 ------------- Run | Scr Mat Min Exi Turns Passed 1459 | . 621 530 308 Spaces Moved 804 | 1 349 265 189 Core . | . . . . Treads . | . . . . Legs 804 | 1 349 265 189 Wheels . | . . . . Hover . | . . . . Flight . | . . . . Fastest Speed 120 | 120 120 150 120 Average Speed 151 | 120 148 158 149 Slowest Speed 180 | 120 180 180 150 Overloaded Moves . | . . . . Propulsion Burnouts . | . . . . Robots Hopped . | . . . . Cave-ins Triggered . | . . . . Exploration Rate (%) 47 | 2 84 62 40 Regions Visited 3 Branch Regions 2 Pre-discovered Areas 1 | . . 1 . Known Exits Taken . | . . . . Unknown Exits Taken 3 | 1 1 1 . Scrap Searched 1 | . . 1 . Spaces Dug . | . . . . Terrain Destroyed 94 | . 46 19 29 Melee . | . . . . Projectile . | . . . . AOE 94 | . 46 19 29 Terrain Rammed . | . . . . Walls Destroyed . | . . . . Machines Disabled . | . . . . Actions | -11 -10 -10 -10 --------- Run | Scr Mat Min Exi Total 943 | . 418 317 208 Wait 8 | . 3 5 . Move 801 | . 348 264 189 Hop . | . . . . Pick Up 25 | . 17 7 1 Fast Attach 4 | . 4 . . Attach 5 | . . 3 2 Detach . | . . . . Swap 20 | . 13 4 3 Drop 23 | . 13 3 7 Fire 54 | . 20 30 4 Melee 3 | . . 1 2 Ram . | . . . . Kick . | . . . . Crush . | . . . . Escape Stasis . | . . . . Rewire . | . . . . Trap . | . . . . Miscellaneous . | . . . . Route ------- -11/Scrapyard -10/Materials (discovered 5 exits: [*Mat x3] / [*Min x2]) -10/Mines (discovered 2 exits: [*Mat] / *Exi) -10/Exiles History --------- Turn | Location | Event 1 | -11/Scrapyard | Discovered new exit (range 0) 1 | -11/Scrapyard | Entered Materials 120 | -10/Materials | Discovered new exit (range 16) 225 | -10/Materials | Discovered new exit (range 13) 303 | -10/Materials | Build established: Mutant 369 | -10/Materials | Discovered new exit (range 16) 468 | -10/Materials | Discovered new exit (range 15) 607 | -10/Materials | Discovered new exit (range 9) 622 | -10/Materials | Entered Mines 626 | -10/Mines | Discovered new exit (range 10) 657 | -10/Mines | Met a Derelict bent on vengeance 662 | -10/Mines | Learned location of Zion (-6) 668 | -10/Mines | A weapon hastily lodged in a ceiling crevice suddenly fell to the ground 954 | -10/Mines | Received a Rocket Launcher from a helpful Derelict 1065 | -10/Mines | Deemed a non-threat by the Exiles lab entrance 1065 | -10/Mines | Discovered new exit (range 5) 1152 | -10/Mines | Entered Exiles 1190 | -10/Exiles | Met 8R-AWN 1214 | -10/Exiles | Met EX-HEX 1263 | -10/Exiles | Met EX-BIN 1281 | -10/Exiles | Aligned with FarCom system 1282 | -10/Exiles | Given EX-Vault access code 1317 | -10/Exiles | Opened EX-Vault 1351 | -10/Exiles | Warned to stay clear of 0b10 Research branches 1426 | -10/Exiles | Attacked by the Exiles 1435 | -10/Exiles | Core integrity fell below 50% 1460 | -10/Exiles | Core integrity fell below 20% 1460 | -10/Exiles | Destroyed by as-50254 with Assembled Heavy Rifle Last Messages --------------- 01443_ Penetrated by HV Slug. 01443_ HV Slug penetrates Earth. 01443_ Penetrated by HV Slug. 01443_ HV Slug penetrates Earth. 01450_ Penetrated by HV Slug. 01450_ HV Slug penetrates Wall. 01453_ Rigged Fission Core explodes. 01453_ Lgt. Ion Engine destroyed. 01453_ Machine disabled. 01455_ Penetrated by HV Slug. 01455_ HV Slug penetrates Wall. 01455_ Penetrated by HV Slug. 01455_ HV Slug penetrates Wall. 01459_ Penetrated by HV Slug. 01459_ HV Slug penetrates Wall. 01459_ Penetrated by HV Slug. 01459_ Critical hit. 01459_ Med. Armor Plating destroyed. 01459_ HV Slug penetrates Earth. 01459_ Rigged Fission Core explodes. Map ----- +----------------------------------------------------+ | ?????????????????????????????????????????????????? | | ?????????????????????????????????????????????????? | | ?????????????????????????????????????????????????? | | ?????????????????????????????????????????????????? | | ?????????????????????????????????????????????????? | | ?????????????????????????????????????????????????? | | ?????????????????????????????????????????????????? | | ?????????????????????????????????????????????????? | | ?????????????????????????????????????????????????? | | ?????????????????????????????????????????????????? | | ?????????????????????????????????????????????????? | | ?????????????????????????????????????????????????? | | ?????????????????????????????????????????????????? | | ?????????????????????????????????????????????????? | | ????????????????????????????????? ???????????????? | | ????????????????????????????????? ????????????? | | ????????????????????????????????# #????????????? | | ??????????????????????????????## ##???????????? | | ??????????????????????????????# #???????????? | | ??????????#####???????????????# #???????????? | | ??????#####" #??????????????## ????????????? | | ##????# #?????????????## #?????????????? | | "#????# ##???????####?# #?????????????? | | "#??## # ######### ### #??????????????? | | ##?# ##;;;; ;;; #??????????????? | | ### # # ;@ #???????????????? | | # % a g ;;#?????????????? | | # ##?????????????? | | ## ##?????????????? | | # #### ###???????????? | | #####"#??##;# * ###?????????? | | ## ##?????# ???####### ##????????? | | #?###???????## ?????????### #????????? | | #?????????????? ??????????### #????????? | | ""#???????????????##????????????### #????????? | | "##??????????????????????????????#" ##???????? | | ##???????????????????????????????#### ###?????? | | #???????????????????????????????????# ##????? | | ????????????????????????????????????## ###??? | | ?????????????????????????????????????### #??? | | ???????????????????????????????????????# ##??? | | ???????????????????????????????????????## ##???? | | ????????????????????????????????????????#####????? | | ?????????????????????????????????????????????????? | | ?????????????????????????????????????????????????? | | ?????????????????????????????????????????????????? | | ?????????????????????????????????????????????????? | | ?????????????????????????????????????????????????? | | ?????????????????????????????????????????????????? | | ?????????????????????????????????????????????????? | +----------------------------------------------------+ Best States ------------- Heat Dissipation 25 Energy Generation 14 Energy Capacity 250 Matter Stores 300 Matter Capacity 300 Sight Range 16 Terrain Scan Density 10 Armor Coverage 225 Evasion (%) 40 Item Schematics ----------------- None Robot Schematics ------------------ None Fabricated ------------ Nothing Alien Tech Used ----------------- None Achievements -------------- None Challenges ------------ None Game ------ Seed CannonColdInsulator Manual? 0 Play Time 00:10:50 Cumulative 116.4 hours Start 2020.11.30 @ 12:42:00 End 2020.11.30 @ 12:50:45 Sessions 1 Manual Loads 0 Difficulty Rogue Special Mode Halloween2020/ForbiddenLore Game No. 125 Rogue 118 Adventurer 0 Explorer 7 Win Type - Total 1 Types 0/0/1/0/0/0/0/0/0 Lore% 55 Gallery% 82 Achievement% 64 Wizard Run 0 Options --------- ASCII 0 Keyboard 0 Movement Mouse Keybinds 0 Fullscreen 1 Font 18/X11 Map View 76x50 Tactical HUD 1 Map Filters NONE Filters NONE Steam 1 RUN: 1c0bb625-400e-489b-9d71-575056136607